bitfinex/quotes_ETHUSD_20250916
["timestamp","ask_amount","ask_price","bid_price","bid_amount"]
[1758013475768,1.2001,4518.4,4518.3,33.74093537]
[1758013477074,0.4683,4518.4,4518.3,33.74093537]
[1758013477396,0.0012,4518.4,4518.3,33.74093537]
[1758013477696,0.0012,4518.4,4518.3,34.04423537]
[1758013478197,0.0012,4518.4,4518.3,33.74093537]
[1758013478963,0.0012,4518.4,4518.3,34.04423537]
[1758013479296,0.0012,4518.4,4518.3,34.52673537]
[1758013479518,0.0012,4518.4,4518.3,34.93873537]
[1758013479861,0.0012,4518.4,4518.3,34.52673537]
[1758013481587,0.0012,4518.4,4518.3,34.04423537]
[1758013483906,0.0012,4518.4,4518.3,34.52673537]
[1758013484085,0.0012,4518.4,4518.3,34.04423537]
[1758013484289,0.0012,4518.4,4518.3,38.23423537]
[1758013485810,0.0012,4518.4,4518.3,37.37684443]
[1758013489029,0.9143,4518.4,4518.3,37.07354443]
[1758013489727,0.0012,4518.4,4518.3,37.07354443]
[1758013489912,0.0012,4518.4,4518.3,37.37684443]
[1758013491124,0.0004,4518.4,4518.3,37.37684443]
[1758013491798,0.0004,4518.4,4518.3,37.07354443]
[1758013492002,0.4551,4518.4,4518.3,37.07354443]
[1758013492423,0.0004,4518.4,4518.3,37.07354443]
[1758013496329,0.0004,4518.4,4518.3,37.36834443]
[1758013498899,0.0004,4518.4,4518.3,37.07354443]
[1758013499231,0.0004,4518.4,4518.3,37.07454443]
[1758013501539,0.0004,4518.4,4518.3,37.36934443]
[1758013502505,0.4563,4518.6,4518.5,3.00512382]
[1758013502869,0.4657,4518.6,4518.5,11.82307565]
[1758013503151,0.7652,4518.6,4518.5,11.93347565]
[1758013503310,1.2262,4518.6,4518.5,12.38977565]
[1758013503501,1.2262,4518.6,4518.5,26.88977565]
[1758013506428,1.2262,4518.6,4518.5,12.38977565]
[1758013506915,1.2262,4518.6,4518.5,26.88977565]
[1758013512348,1.2262,4518.6,4518.5,4.3595]
[1758013512560,1.2262,4518.6,4518.5,0.4571]
[1758013512864,2.2123728,4518.4,4518.3,3.247]
[1758013513068,3.64352481,4518.4,4518.3,0.001]
[1758013513270,3.4369728,4518.4,4518.3,0.001]
[1758013513475,3.6433346,4518.4,4518.3,0.001]
[1758013514370,3.4369728,4518.4,4518.3,0.001]
[1758013515785,1.2246,4518.4,4518.3,0.001]
[1758013515970,3.4377728,4518.4,4518.3,0.001]
[1758013516893,1.2246,4518.4,4518.3,0.001]
[1758013517057,3.4377728,4518.4,4518.3,0.001]
[1758013518597,1.2246,4518.4,4518.3,0.001]
[1758013520363,0.7605,4518.4,4518.3,0.001]
[1758013521059,1.2177,4518.4,4518.3,0.001]
[1758013521260,1.2177,4518.4,4518.3,0.66636625]
[1758013521674,0.7605,4518.4,4518.3,0.66636625]
[1758013522999,0.112,4518.6,4518.5,6.00512382]
[1758013523000,0.0016,4518.6,4518.5,6.00512382]
[1758013523181,0.0016,4518.6,4518.5,9.68292382]
[1758013523377,0.0016,4518.6,4518.5,10.87872382]
[1758013524177,0.0016,4518.6,4518.5,10.96742397]
[1758013524385,0.0016,4518.6,4518.5,13.02541349]
[1758013524769,0.0016,4518.6,4518.5,12.56951349]
[1758013525529,0.0016,4518.6,4518.5,26.62171349]
[1758013525695,0.0016,4518.6,4518.5,30.90038431]
[1758013526095,0.0016,4518.6,4518.5,31.34818431]
[1758013527824,0.0008,4518.6,4518.5,31.34818431]
[1758013528181,0.4905,4518.6,4518.5,30.60828431]
[1758013528495,0.7921,4518.6,4518.5,30.60828431]
[1758013528705,0.4905,4518.6,4518.5,30.60828431]
[1758013529291,0.4905,4518.6,4518.5,30.90038431]
[1758013529607,0.0008,4518.6,4518.5,30.90038431]
[1758013530282,0.0008,4518.6,4518.5,31.34818431]
[1758013530678,0.0008,4518.6,4518.5,30.90038431]
[1758013531005,0.4905,4518.6,4518.5,30.60828431]
[1758013531374,0.4905,4518.6,4518.5,30.90038431]
[1758013531575,0.0008,4518.6,4518.5,30.90038431]
[1758013532726,0.4905,4518.6,4518.5,30.90038431]
[1758013533030,0.0008,4518.6,4518.5,30.90038431]
[1758013533613,0.4905,4518.6,4518.5,30.90038431]
[1758013534421,0.0008,4518.6,4518.5,30.90038431]
[1758013541939,0.0008,4518.6,4518.5,30.60828431]
[1758013541940,0.7921,4518.6,4518.5,30.60828431]
[1758013542945,0.4905,4518.6,4518.5,30.60828431]
[1758013544149,0.4905,4518.6,4518.5,30.90038431]
[1758013544449,0.0008,4518.6,4518.5,30.90038431]
[1758013547148,0.4905,4518.6,4518.5,30.60828431]
[1758013547328,0.7921,4518.6,4518.5,28.55029479]
[1758013547547,0.4905,4518.6,4518.5,28.55029479]
[1758013547767,0.4905,4518.6,4518.5,24.27162397]
[1758013549368,0.7921,4518.6,4518.5,24.27162397]
[1758013549872,0.4905,4518.6,4518.5,24.27262397]
[1758013550177,0.4905,4518.6,4518.5,26.4117758]
[1758013550888,1.2603,4518.6,4518.5,26.4117758]
[1758013551080,1.2603,4518.6,4518.5,24.27262397]
[1758013551250,1.2595,4518.6,4518.5,24.27262397]
[1758013551842,0.7903,4518.6,4518.5,24.27262397]
[1758013552036,0.4897,4518.6,4518.5,24.27162397]
[1758013552583,0.0004,4518.7,4518.6,3.00507484]
[1758013552783,0.469,4518.7,4518.6,3.00587484]
[1758013552990,0.4682,4518.7,4518.6,3.11627484]
[1758013553163,0.4682,4518.7,4518.6,6.79227484]
[1758013553476,0.4682,4518.7,4518.6,21.29227484]
[1758013554569,0.4682,4518.7,4518.6,17.61627484]
[1758013554770,0.4682,4518.7,4518.6,21.29227484]
[1758013557401,0.4682,4518.7,4518.6,22.89415899]
[1758013559512,0.7822,4518.7,4518.6,22.89415899]
[1758013559884,0.4682,4518.7,4518.6,22.89415899]
[1758013560587,0.4682,4518.7,4518.6,24.59515899]
[1758013562005,1.2325,4518.7,4518.6,24.59515899]
[1758013562197,1.2325,4518.7,4518.6,22.99327484]
[1758013563475,0.7822,4518.7,4518.6,22.99327484]
[1758013564105,0.4682,4518.7,4518.6,22.99327484]
[1758013565671,0.7822,4518.7,4518.6,22.99327484]
[1758013567478,0.7842,4518.7,4518.6,22.99327484]
[1758013569010,0.4702,4518.7,4518.6,22.99327484]
[1758013569310,0.4702,4518.7,4518.6,23.61241396]
[1758013570591,0.7842,4518.7,4518.6,16.3122]
[1758013570915,1.2345,4518.7,4518.6,5.4882]
[1758013571721,1.2345,4518.7,4518.6,7.70127484]
[1758013573219,0.7842,4518.7,4518.6,7.70127484]
[1758013573520,0.7834,4518.7,4518.6,7.70127484]
[1758013574624,1.2337,4518.7,4518.6,1.7018]
[1758013574824,1.64769482,4518.7,4518.6,5.3778]
[1758013575122,1.64769482,4518.7,4518.6,3.6768]
[1758013575313,1.44053511,4518.7,4518.6,3.6768]
[1758013575819,3.65356098,4518.7,4518.6,3.6768]
[1758013577093,3.86032738,4518.7,4518.6,0.0008]
[1758013577510,3.98432112,4518.7,4518.6,0.0008]
[1758013578136,3.98352112,4518.7,4518.6,0.0008]
[1758013579052,3.98339087,4518.7,4518.6,0.0008]
[1758013579249,3.9833186,4518.7,4518.6,0.0008]
[1758013579604,3.98279237,4518.7,4518.6,0.0008]
[1758013582302,3.98209011,4518.7,4518.6,0.0008]
[1758013584235,3.98209011,4518.7,4518.6,0.0018]
[1758013585753,3.85829889,4518.7,4518.6,0.0018]
[1758013589305,7.53429889,4518.7,4518.6,0.0018]
[1758013592570,7.53433428,4518.7,4518.6,0.0018]
[1758013593863,7.53416897,4518.7,4518.6,0.0018]
[1758013594306,7.65785354,4518.7,4518.6,0.0018]
[1758013595718,7.2068498,4518.7,4518.6,0.0018]
[1758013598618,7.2069063,4518.7,4518.6,0.0018]
[1758013599315,7.20691243,4518.7,4518.6,0.0018]
[1758013600320,7.68261087,4518.7,4518.6,0.0018]
[1758013601208,8.14661087,4518.7,4518.6,0.0018]
[1758013603510,8.14581087,4518.7,4518.6,1.0018]
[1758013603891,8.14602726,4518.7,4518.6,1.0018]
[1758013606322,7.68202726,4518.7,4518.6,1.0018]
[1758013606984,8.14602726,4518.7,4518.6,1.0018]
[1758013607181,8.74131291,4518.7,4518.6,1.0018]
[1758013610910,1.01498335,4518.7,4518.6,1.7576]
[1758013611123,0.53928491,4518.7,4518.6,2.82497663]
[1758013611407,0.41522506,4518.7,4518.6,2.82497663]
[1758013615217,0.20812155,4518.7,4518.6,2.82497663]
[1758013615563,0.20812155,4518.7,4518.6,7.10714294]
[1758013615732,0.002,4518.7,4518.6,9.32021778]
[1758013616071,0.002,4518.7,4518.6,12.63972129]
[1758013617830,0.002,4518.7,4518.6,13.32132129]
[1758013618158,0.002,4518.7,4518.6,13.43172129]
[1758013618336,0.002,4518.7,4518.6,27.93172129]
[1758013619520,0.002,4518.8,4518.7,4.00302587]
[1758013619837,0.002,4518.8,4518.7,7.13070795]
[1758013620031,0.002,4518.8,4518.7,7.4131777]
[1758013620840,0.002,4518.8,4518.7,10.86588391]
[1758013621556,0.002,4518.8,4518.7,14.54088391]
[1758013622800,0.002,4518.8,4518.7,18.82305022]
[1758013623300,0.002,4518.8,4518.7,33.32305022]
[1758013626652,0.002,4518.8,4518.7,37.51305022]
[1758013627989,0.002,4518.8,4518.7,37.60172934]
[1758013628691,0.0012,4518.8,4518.7,37.60172934]
[1758013631295,0.0004,4518.8,4518.7,37.60172934]
[1758013631907,0.002,4519.2,4519.1,5.07416631]
[1758013632207,0.002,4519.2,4519.1,11.80090082]
[1758013632379,0.002,4519.2,4519.1,13.07110082]
[1758013632576,0.002,4519.6,4519.3,0.792]
[1758013632781,0.002,4519.6,4519.3,8.51225938]
[1758013632981,0.002,4519.6,4519.3,8.79473206]
[1758013633205,0.002,4519.6,4519.3,26.28125045]
[1758013633509,0.002,4519.6,4519.3,26.36991758]
[1758013641396,1e-08,4519.6,4519.5,3.00463414]
[1758013641599,1e-08,4519.6,4519.5,10.98192679]
[1758013641900,1e-08,4519.6,4519.5,11.73900045]
[1758013642100,1e-08,4519.6,4519.5,13.87314624]
[1758013642410,1e-08,4519.6,4519.5,28.83194624]
[1758013643019,1e-08,4519.6,4519.5,28.37394624]
[1758013648536,0.17425761,4521.2,4520.8,2.21196393]
[1758013648699,0.3308105,4521.7,4520.9,5.88494326]
[1758013648899,0.3101,4521.0,4520.9,5.88494326]
[1758013649118,0.3101,4521.0,4520.9,3.673]
[1758013649723,0.3101,4521.0,4520.9,5.88494894]
[1758013650396,1.1776,4521.0,4520.9,5.88494894]
[1758013650597,1.1776,4521.0,4520.9,3.673]
[1758013652332,1.1776,4521.0,4520.9,5.88494894]
[1758013652532,1.1776,4521.0,4520.9,5.88574894]
[1758013653327,1.1768,4521.0,4520.9,5.88574894]
[1758013654035,1.176,4521.0,4520.9,5.88574894]
[1758013655636,1.178,4521.0,4520.9,5.88574894]
[1758013657242,0.7968,4521.0,4520.9,5.88574894]
[1758013658449,1.178,4521.0,4520.9,5.99614894]
[1758013659730,0.7968,4521.0,4520.9,5.99614894]
[1758013662263,1.00411604,4521.0,4520.9,5.99614894]
[1758013662634,0.51781604,4521.0,4520.9,5.99614894]
[1758013663150,0.3105,4521.0,4520.9,5.99614894]
[1758013664769,0.7968,4521.0,4520.9,5.99614894]
[1758013664966,0.7968,4521.0,4520.9,0.1112]
[1758013665262,1.178,4521.0,4520.9,3.6728]
[1758013665578,0.7968,4521.0,4520.9,3.6728]
[1758013666176,0.7968,4521.0,4520.9,5.88474894]
[1758013667232,0.7968,4521.0,4520.9,2.21274894]
[1758013667432,0.3105,4521.0,4520.9,5.88474894]
[1758013669051,0.002,4521.0,4520.9,5.88474894]
[1758013675287,0.0012,4521.0,4520.9,6.62124894]
[1758013678300,0.0012,4521.0,4520.9,7.48063524]
[1758013678593,0.0012,4521.0,4520.9,8.27263524]
[1758013678804,0.0012,4521.0,4520.9,22.88303524]
[1758013678961,0.0004,4521.0,4520.9,22.88303524]
[1758013681876,0.0004,4521.0,4520.9,8.38303524]
[1758013682401,0.0004,4521.0,4520.9,22.88303524]
[1758013682596,0.0004,4521.0,4520.9,22.41413524]
[1758013684065,0.0004,4521.0,4520.9,17.96643524]
[1758013684292,0.0004,4521.0,4520.9,21.63843524]
[1758013684802,0.0004,4521.0,4520.9,7.13843524]
[1758013685903,0.2169,4521.0,4520.9,3.46643524]
[1758013686108,0.7152,4521.0,4520.9,7.13843524]
[1758013686507,0.2169,4521.0,4520.9,5.99514894]
[1758013688583,0.0004,4521.0,4520.9,6.30064894]
[1758013688771,0.0004,4521.0,4520.9,6.77164894]
[1758013689910,0.0004,4521.0,4520.9,6.30064894]
[1758013690984,0.0004,4521.0,4520.9,5.99514894]
[1758013691185,0.2169,4521.0,4520.9,5.99514894]
[1758013692620,0.2169,4521.0,4520.9,0.1112]
[1758013692799,1.1875,4521.0,4520.9,3.6718]
[1758013692994,1.1875,4521.0,4520.9,0.0008]
[1758013693200,1.1875,4521.0,4520.9,3.6718]
[1758013694114,0.7152,4521.0,4520.9,3.6718]
[1758013696425,0.2169,4521.0,4520.9,3.6718]
[1758013696916,0.7152,4521.0,4520.9,3.6718]
[1758013697339,0.41414313,4521.4,4520.9,6.18924894]
[1758013697537,0.41414313,4521.4,4521.0,0.471]
[1758013697538,0.1104,4521.3,4521.0,0.471]
[1758013697739,0.6087,4521.3,4521.1,3.671]
[1758013697950,0.2165,4521.2,4521.1,3.671]
[1758013698242,0.2165,4521.2,4521.0,0.0008]
[1758013698447,0.6888,4521.2,4521.1,3.671]
[1758013699040,0.7148,4521.2,4521.1,3.671]
[1758013699614,1.1871,4521.2,4521.1,3.671]
[1758013700253,0.7148,4521.2,4521.0,0.0008]
[1758013700546,2.65175109,4521.1,4521.0,0.0008]
[1758013700712,0.64697149,4521.1,4521.0,0.0008]
[1758013700914,0.90967149,4521.1,4521.0,0.0008]
[1758013701111,0.7026,4521.1,4521.0,3.6718]
[1758013701308,0.20707149,4521.2,4521.0,3.9628]
[1758013701545,0.20707149,4521.2,4521.1,0.4354]
[1758013701924,0.20707149,4521.2,4521.0,4.1072]
[1758013702466,0.31747149,4521.3,4521.1,0.7264]
[1758013702645,0.31747149,4521.3,4521.2,3.671]
[1758013702963,0.1104,4521.3,4521.2,3.671]
[1758013703117,0.31747149,4521.3,4521.2,3.671]
[1758013703316,0.3615,4521.3,4521.2,4.11278434]
[1758013703620,0.56857149,4521.3,4521.2,4.11278434]
[1758013704131,0.3615,4521.3,4521.2,4.11278434]
[1758013704335,0.31667149,4521.3,4521.2,4.11278434]
[1758013704531,0.1096,4521.3,4521.2,4.11278434]
[1758013704755,0.31667149,4521.3,4521.2,4.11278434]
[1758013705245,1.01927149,4521.3,4521.2,4.11278434]
[1758013705453,3.43795833,4521.3,4521.2,4.11278434]
[1758013706962,3.43777959,4521.3,4521.2,4.11278434]
[1758013708064,3.43777959,4521.3,4521.2,4.11358434]
[1758013708984,3.43977959,4521.3,4521.2,4.11358434]
[1758013710052,1.22802634,4521.3,4521.2,4.11358434]
[1758013710268,3.43977959,4521.3,4521.2,3.6718]
[1758013710475,3.87777959,4521.3,4521.2,3.6718]
[1758013710650,3.43977959,4521.3,4521.2,3.6718]
[1758013710838,3.43977959,4521.3,4521.2,0.0008]
[1758013711034,3.43977959,4521.3,4521.2,3.6718]
[1758013712041,0.77652634,4521.3,4521.2,3.6718]
[1758013712266,2.98827959,4521.3,4521.2,3.6718]
[1758013712467,0.77652634,4521.3,4521.2,3.6718]
[1758013712667,0.3627,4521.3,4521.2,3.6718]
[1758013712875,2.781346,4521.3,4521.2,3.6718]
[1758013713082,2.98827959,4521.3,4521.2,3.6718]
[1758013713569,3.43977959,4521.3,4521.2,3.6718]
[1758013714879,2.98827959,4521.3,4521.2,3.6718]
[1758013715742,3.43977959,4521.3,4521.2,3.6718]
[1758013716298,2.98827959,4521.3,4521.2,3.6718]
[1758013719477,2.98747959,4521.3,4521.2,3.6718]
[1758013720381,2.98752652,4521.3,4521.2,3.6718]
[1758013721060,3.43902652,4521.3,4521.2,0.0008]
[1758013721260,4.00119229,4521.3,4521.2,0.0008]
[1758013721464,7.67219229,4521.3,4521.2,0.0008]
[1758013721666,8.14886195,4521.3,4521.2,0.0008]
[1758013722064,7.71086195,4521.3,4521.2,0.0008]
[1758013722269,8.14886195,4521.3,4521.2,0.0008]
[1758013722467,7.71086195,4521.3,4521.2,0.0008]
[1758013724376,4.03986195,4521.3,4521.2,0.0008]
[1758013724556,7.23419229,4521.3,4521.2,0.0008]
[1758013724759,7.71086195,4521.3,4521.2,0.0008]
[1758013725957,7.25936195,4521.3,4521.2,0.0008]
[1758013726285,7.71086195,4521.3,4521.2,0.0008]
[1758013727283,7.71078052,4521.3,4521.2,0.0008]
[1758013728565,8.14718052,4521.3,4521.2,0.0008]
[1758013729382,8.14638052,4521.3,4521.2,0.0008]
[1758013731199,5.57352727,4521.3,4521.2,0.0008]
[1758013731397,5.09685761,4521.3,4521.2,0.0008]
[1758013731882,7.30861086,4521.3,4521.2,0.0008]
[1758013732087,7.78528052,4521.3,4521.2,0.0008]
[1758013732261,4.42598052,4521.3,4521.2,0.0008]
[1758013732585,7.62131086,4521.3,4521.2,0.0008]
[1758013732901,8.09794509,4521.3,4521.2,0.0008]
[1758013733499,7.62127543,4521.3,4521.2,0.0008]
[1758013733682,8.09758593,4521.3,4521.2,0.0008]
[1758013734087,7.55966375,4521.3,4521.2,0.0008]
[1758013734274,8.0971943,4521.3,4521.2,0.0008]
[1758013737411,8.0971888,4521.3,4521.2,0.0008]
[1758013739373,7.6456888,4521.3,4521.2,0.0008]
[1758013740982,8.1351888,4521.3,4521.2,0.0008]
[1758013741377,8.2645888,4521.3,4521.2,0.0008]
[1758013741707,8.26460259,4521.3,4521.2,0.0008]
[1758013741873,8.26380259,4521.3,4521.2,0.0008]
[1758013742305,8.1343985,4521.3,4521.2,0.0008]
[1758013742610,12.41129476,4521.3,4521.2,0.0008]
[1758013742910,12.54069476,4521.3,4521.2,0.0008]
[1758013747311,12.54269476,4521.3,4521.2,0.0008]
[1758013748402,12.41329476,4521.3,4521.2,0.0008]
[1758013750709,12.20655224,4521.3,4521.2,0.0008]
[1758013750907,15.08250279,4521.3,4521.2,0.0008]
[1758013751146,15.60054839,4521.3,4521.2,0.0008]
[1758013751441,16.01445251,4521.3,4521.2,0.0008]
[1758013751813,15.20688356,4521.3,4521.2,0.0008]
[1758013752031,14.87576027,4521.3,4521.2,0.0008]
[1758013752523,15.41383217,4521.3,4521.2,0.0008]
[1758013753333,16.00972139,4521.3,4521.2,0.0008]
[1758013753641,3.7912,4521.2,4520.8,1e-08]
[1758013753812,6.48884546,4520.9,4520.8,1e-08]
[1758013754011,13.4720119,4520.9,4520.8,1e-08]
[1758013754249,14.88637593,4520.9,4520.8,1e-08]
[1758013754442,14.1810824,4520.9,4520.8,1e-08]
[1758013754772,14.1802824,4520.9,4520.8,1e-08]
[1758013755180,17.97393314,4520.9,4520.8,1e-08]
[1758013755345,17.97393314,4520.9,4520.4,1e-08]
[1758013755346,9.48904119,4520.5,4520.4,1e-08]
[1758013755541,14.77025818,4520.5,4520.4,1e-08]
[1758013755773,15.57011036,4520.5,4520.4,1e-08]
[1758013756563,15.65881858,4520.5,4520.4,1e-08]
[1758013758237,15.06361694,4520.5,4520.4,1e-08]
[1758013759551,15.06279863,4520.5,4520.4,1e-08]
[1758013761780,9.98580211,4520.5,4520.4,1.22630001]
[1758013762273,14.26269863,4520.5,4520.4,0.74570001]
[1758013763042,14.26260301,4520.5,4520.4,0.74570001]
[1758013763661,14.26260301,4520.5,4520.4,1e-08]
[1758013763878,14.26260301,4520.5,4520.4,0.00080001]
[1758013765481,14.83970301,4520.5,4520.4,0.00080001]
[1758013765777,15.7137749,4520.5,4520.4,0.00080001]
[1758013766477,15.3737749,4520.5,4520.4,0.00080001]
[1758013767070,15.3757749,4520.5,4520.4,0.00080001]
[1758013770258,15.722738,4520.5,4520.4,0.00080001]
[1758013771681,12.050738,4520.5,4520.4,0.00080001]
[1758013771886,15.145638,4520.5,4520.4,0.00080001]
[1758013774659,14.89848538,4520.5,4520.4,0.00080001]
[1758013775891,15.37658538,4520.5,4520.4,0.00080001]
[1758013776780,14.89848538,4520.5,4520.4,0.00080001]
[1758013777006,14.89848538,4520.5,4520.4,0.74650001]
[1758013777615,14.89848538,4520.5,4520.4,0.00080001]
[1758013779288,15.69208757,4520.5,4520.4,0.00080001]
[1758013779614,14.89848538,4520.5,4520.4,0.00080001]
[1758013779792,14.89768538,4520.5,4520.4,0.00080001]
[1758013779994,14.42137488,4520.5,4520.4,0.00080001]
[1758013781019,15.37578591,4520.5,4520.4,0.00080001]
[1758013781213,16.16963764,4520.5,4520.4,0.00080001]
[1758013782593,16.15642864,4520.5,4520.4,0.00080001]
[1758013783012,16.15752694,4520.5,4520.4,0.00080001]
[1758013783215,15.36367521,4520.5,4520.4,0.00080001]
[1758013784715,14.88557521,4520.5,4520.4,0.00080001]
[1758013785598,15.13272783,4520.5,4520.4,0.00080001]
[1758013785797,15.61082783,4520.5,4520.4,0.00080001]
[1758013786911,15.36367521,4520.5,4520.4,0.00080001]
[1758013787581,15.36367521,4520.5,4520.4,0.31160001]
[1758013787582,10.60867869,4520.5,4520.4,0.31160001]
[1758013787788,10.60867869,4520.5,4520.4,1.22710001]
[1758013787988,6.93667869,4520.5,4520.4,1.22710001]
[1758013788190,10.60867869,4520.5,4520.4,0.74650001]
[1758013788415,10.32175942,4520.5,4520.4,0.74650001]
[1758013788999,10.11485864,4520.5,4520.4,0.74650001]
[1758013789240,10.321933,4520.5,4520.4,0.74650001]
[1758013789691,14.59882952,4520.5,4520.4,0.74650001]
[1758013790222,10.92682952,4520.5,4520.4,0.74650001]
[1758013790426,14.59882952,4520.5,4520.4,0.74650001]
[1758013790895,16.30139025,4520.5,4520.4,0.74650001]
[1758013791919,16.89359025,4520.5,4520.4,0.00080001]
[1758013793851,12.61669373,4520.5,4520.4,0.00080001]
[1758013794737,12.61665769,4520.5,4520.4,0.00080001]
[1758013797322,12.61660878,4520.5,4520.4,0.00080001]
[1758013797732,12.51760769,4520.5,4520.4,0.00080001]
[1758013799672,12.51761125,4520.5,4520.4,0.00080001]
[1758013799837,12.02441125,4520.5,4520.4,0.00080001]
[1758013800666,12.49431125,4520.5,4520.4,0.00080001]
[1758013800872,13.12978314,4520.5,4520.4,0.00080001]
[1758013801171,13.12898314,4520.5,4520.4,0.00080001]
[1758013801676,6.00419361,4520.4,4519.9,0.001]
[1758013801875,11.54075217,4520.0,4519.9,0.001]
[1758013802085,15.42551415,4520.0,4519.9,0.001]
[1758013802260,16.14256677,4520.0,4519.9,0.001]
[1758013802440,16.23118586,4520.0,4519.9,0.001]
[1758013802640,16.57819945,4520.0,4519.9,0.001]
[1758013805170,16.57739945,4520.0,4519.9,0.001]
[1758013805370,17.76816148,4520.0,4519.9,0.001]
[1758013806105,17.76798898,4520.0,4519.9,0.001]
[1758013808010,18.55998898,4520.0,4519.9,0.001]
[1758013808209,17.36922695,4520.0,4519.9,0.001]
[1758013808686,17.3688151,4520.0,4519.9,0.001]
[1758013810106,17.02180151,4520.0,4519.9,0.001]
[1758013810307,17.02144022,4520.0,4519.9,0.001]
[1758013811711,17.36846726,4520.0,4519.9,0.001]
[1758013811915,17.36846726,4520.0,4519.9,0.0018]
[1758013812712,17.24452496,4520.0,4519.9,0.0018]
[1758013812900,19.37179525,4520.0,4519.9,0.0018]
[1758013813212,19.16522474,4520.0,4519.9,0.0018]
[1758013813515,19.37178026,4520.0,4519.9,0.0018]
[1758013814307,19.70222161,4520.0,4519.9,0.0018]
[1758013814484,19.70221046,4520.0,4519.9,0.0018]
[1758013814689,19.70220782,4520.0,4519.9,0.0018]
[1758013816112,19.49567749,4520.0,4519.9,0.0018]
[1758013816303,19.70214698,4520.0,4519.9,0.0018]
[1758013818407,19.5782272,4520.0,4519.9,0.0018]
[1758013818611,19.70212395,4520.0,4519.9,0.0018]
[1758013818813,19.70211792,4520.0,4519.9,0.0018]
[1758013819814,19.7021132,4520.0,4519.9,0.0018]
[1758013820328,2.21263414,4519.5,4519.4,0.9408]
[1758013820534,17.05225585,4519.5,4519.4,0.9408]
[1758013820829,17.52856688,4519.5,4519.4,1.2417]
[1758013821026,18.19404235,4519.5,4519.4,1.2417]
[1758013822038,18.19404235,4519.5,4519.4,1.2425]
[1758013822947,2.21278102,4519.2,4519.1,0.02]
[1758013823252,2.21287895,4519.0,4518.9,0.001]
[1758013823542,2.21312279,4518.6,4517.8,0.001]
[1758013823706,2.21312279,4518.6,4517.4,0.001]
[1758013823707,2.21346673,4517.8,4517.7,1e-08]
[1758013823910,9.29845772,4517.8,4517.7,1e-08]
[1758013824153,5.21351572,4517.7,4517.4,0.001]
[1758013824361,6.22671521,4517.7,4517.4,0.001]
[1758013824663,6.22671521,4517.7,4517.6,0.3019]
[1758013824827,6.31547677,4517.7,4517.6,0.3019]
[1758013825733,6.31520003,4517.7,4517.6,0.3019]
[1758013827111,6.31520003,4517.7,4517.6,0.7559]
[1758013827744,6.31495771,4517.7,4517.6,0.7559]
[1758013828623,6.31495771,4517.7,4517.6,0.3019]
[1758013829539,6.31483487,4517.7,4517.6,0.3019]
[1758013829931,6.31487204,4517.7,4517.6,0.3019]
[1758013830133,6.31407204,4517.7,4517.6,0.3019]
[1758013831430,6.31374638,4517.7,4517.6,0.3019]
[1758013832368,6.31374638,4517.7,4517.6,0.3027]
[1758013833767,6.31374638,4517.7,4517.6,0.0018]
[1758013834836,6.31374638,4517.7,4517.6,0.3027]
[1758013836437,6.31374638,4517.7,4517.6,0.0018]
[1758013836638,6.79194638,4517.7,4517.6,0.0018]
[1758013837771,6.31374638,4517.7,4517.6,0.0018]
[1758013839547,6.31374638,4517.7,4517.6,0.3027]
[1758013842397,6.31374638,4517.7,4517.6,0.7567]
[1758013842604,9.98674638,4517.7,4517.6,1.1856]
[1758013844505,6.31374638,4517.7,4517.6,1.1856]
[1758013844801,9.98674638,4517.7,4517.6,1.1856]
[1758013847070,9.98741531,4517.7,4517.6,0.7567]
[1758013848217,9.98741531,4517.7,4517.6,0.3027]
[1758013848520,9.89865375,4517.7,4517.6,0.3027]
[1758013848688,9.89865375,4517.7,4517.6,0.7567]
[1758013849618,9.89865375,4517.7,4517.6,0.3027]
[1758013849822,6.22565375,4517.7,4517.6,0.3027]
[1758013849988,9.89865375,4517.7,4517.6,0.7567]
[1758013850521,9.89878261,4517.7,4517.6,0.7567]
[1758013850722,9.89904796,4517.7,4517.6,0.7567]
[1758013851016,9.89931152,4517.7,4517.6,0.7567]
[1758013851222,6.22631152,4517.7,4517.6,0.3027]
[1758013851522,9.89931152,4517.7,4517.6,0.3027]
[1758013852506,10.49420346,4517.7,4517.6,0.3027]
[1758013853392,9.89957781,4517.7,4517.6,0.3027]
[1758013854616,9.89989839,4517.7,4517.6,0.3027]
[1758013855324,9.90109839,4517.7,4517.6,0.3027]
[1758013858747,9.90137307,4517.7,4517.6,0.3027]
[1758013858913,9.90137319,4517.7,4517.6,0.3027]
[1758013859116,6.22837319,4517.7,4517.6,0.3027]
[1758013859313,9.90137319,4517.7,4517.6,0.3027]
[1758013862614,9.9013749,4517.7,4517.6,0.3027]
[1758013862814,9.9013749,4517.7,4517.6,0.0018]
[1758013863016,10.3786749,4517.7,4517.6,0.0018]
[1758013863642,11.1114749,4517.7,4517.6,0.0018]
[1758013865147,9.14049168,4517.7,4517.6,0.0018]
[1758013865334,12.81349168,4517.7,4517.6,0.0018]
[1758013867345,12.08069168,4517.7,4517.6,0.0018]
[1758013868441,12.37969168,4517.7,4517.6,0.0018]
[1758013868648,12.81349168,4517.7,4517.6,0.0018]
[1758013869637,9.14049168,4517.7,4517.6,0.0018]
[1758013869833,12.81349168,4517.7,4517.6,0.0018]
[1758013870346,12.37969168,4517.7,4517.6,0.0018]
[1758013870669,1.12687596,4517.7,4517.6,1.246]
[1758013870964,0.31976307,4517.7,4517.6,1.79921824]
[1758013873185,0.002,4517.7,4517.6,4.01278296]
[1758013873471,0.002,4517.7,4517.6,1.79921824]
[1758013877773,2.69281572,4517.7,4517.6,0.0018]
[1758013877978,3.63244677,4517.7,4517.6,0.0018]
[1758013878565,3.63242577,4517.7,4517.6,0.0018]
[1758013879446,2.42232577,4517.7,4517.6,0.0018]
[1758013880489,0.20881005,4517.7,4517.6,0.0018]
[1758013880785,2.21471572,4517.7,4517.6,0.0018]
[1758013880987,2.42152577,4517.7,4517.6,0.0018]
[1758013881480,3.60322577,4517.7,4517.6,0.0018]
[1758013883061,0.66381005,4517.7,4517.6,0.0018]
[1758013883794,2.87732577,4517.7,4517.6,0.0018]
[1758013886368,2.87731967,4517.7,4517.6,0.0018]